fUSD/lending_fUSD_20260525
["ID","MTS","AMOUNT","RATE_DAILY","PERIOD"]
[422978141,1779699031000,-500.0,0.00010948,2]
[422978135,1779699031000,-508.53792105,0.00010948,2]
[422978127,1779699031000,-1000.0,0.00010948,2]
[422978131,1779699031000,-193.94724383,0.00010948,2]
[422978125,1779699031000,-1200.0,0.00010947,2]
[422978119,1779699031000,-2929.0,0.00010921,2]
[422978133,1779699031000,-500.0,0.00010948,2]
[422978117,1779699031000,-772.31425129,0.000109,2]
[422978111,1779699031000,-250.0,0.00010367,2]
[422978112,1779699031000,-500.0,0.00010442,2]
[422978114,1779699031000,-200.0,0.00010564,2]
[422978110,1779699031000,-204.19942051,0.00010293,2]
[422978115,1779699031000,-1538.22,0.00010594,2]
[422978113,1779699031000,-479.16,0.00010541,2]
[422978109,1779699031000,-450.50057949,0.00010293,2]
[422978108,1779699031000,-509.08,0.00010169,2]
[422978121,1779699031000,-181.51908103,0.00010939,2]
[422978116,1779699031000,-172.14,0.00010637,2]
[422978143,1779699031000,-321.00228609,0.00010948,2]
[422978147,1779699031000,-500.0,0.00010948,2]
[422978188,1779699031000,-500.0,0.00010948,2]
[422978190,1779699031000,-7742.80913862,0.00010949,2]
[422978185,1779699031000,-500.0,0.00010948,2]
[422978187,1779699031000,-500.0,0.00010948,2]
[422978189,1779699031000,-245348.95817283,0.00010949,2]
[422978183,1779699031000,-500.0,0.00010948,2]
[422978145,1779699031000,-500.0,0.00010948,2]
[422978180,1779699031000,-500.0,0.00010948,2]
[422978178,1779699031000,-500.0,0.00010948,2]
[422978175,1779699031000,-500.0,0.00010948,2]
[422978191,1779699031000,-26764.65839398,0.00010949,2]
[422978158,1779699031000,-500.0,0.00010948,2]
[422978172,1779699031000,-500.0,0.00010948,2]
[422978151,1779699031000,-500.0,0.00010948,2]
[422978165,1779699031000,-500.0,0.00010948,2]
[422978154,1779699031000,-500.0,0.00010948,2]
[422978149,1779699031000,-500.0,0.00010948,2]
[422978162,1779699031000,-500.0,0.00010948,2]
[422978169,1779699031000,-500.0,0.00010948,2]
[422978157,1779699031000,-196.50258759,0.00010948,2]
[422978153,1779699031000,-500.0,0.00010948,2]
[422978192,1779699032000,-161177.16512891,0.00010949,2]
[422978193,1779699032000,-1254.41808677,0.00010949,2]
[422978202,1779699037000,-15606.0,0.00010949,2]
[422978201,1779699037000,-11707.62453301,0.00010949,2]
[422978203,1779699039000,-774.5194,0.00010949,2]
[422978204,1779699039000,-2712.0917994,0.00010949,2]
[422978220,1779699042000,-284.27043473,0.00010949,2]
[422978237,1779699046000,-13140.669,0.00010949,2]
[422978691,1779699348000,215.88,5.211e-05,2]
[422978690,1779699348000,215.88,4.95e-05,2]
[422978692,1779699348000,215.88,5.471e-05,2]
[422978696,1779699349000,215.88,6.513e-05,2]
[422978695,1779699349000,215.88,6.253e-05,2]
[422978694,1779699349000,215.88,5.992e-05,2]
[422978693,1779699349000,215.88,5.732e-05,2]
[422978701,1779699350000,215.88,7.816e-05,2]
[422978700,1779699350000,215.88,7.555e-05,2]
[422978699,1779699350000,215.88,7.295e-05,2]
[422978698,1779699350000,215.88,7.034e-05,2]
[422978697,1779699350000,215.88,6.774e-05,2]
[422978704,1779699351000,215.88,8.597e-05,2]
[422978703,1779699351000,215.88,8.337e-05,2]
[422978702,1779699351000,215.88,8.076e-05,2]
[422978927,1779699699000,36449.0,0.00021,120]
[422978963,1779700206000,282.14,4.371e-05,2]
[422978969,1779700207000,282.14,5.521e-05,2]
[422978968,1779700207000,282.14,5.291e-05,2]
[422978967,1779700207000,2000.0,8.742e-05,2]
[422978966,1779700207000,282.14,5.061e-05,2]
[422978965,1779700207000,282.14,4.831e-05,2]
[422978964,1779700207000,282.14,4.601e-05,2]
[422978974,1779700208000,282.14,6.671e-05,2]
[422978973,1779700208000,282.14,6.441e-05,2]
[422978972,1779700208000,282.14,6.211e-05,2]
[422978971,1779700208000,282.14,5.981e-05,2]
[422978970,1779700208000,282.14,5.751e-05,2]
[422978975,1779700209000,282.14,6.901e-05,2]
[422978976,1779700209000,282.14,7.131e-05,2]
[422978978,1779700209000,282.14,7.592e-05,2]
[422978979,1779700209000,282.14,7.822e-05,2]
[422978977,1779700209000,282.14,7.362e-05,2]
[422978983,1779700210000,282.14,8.742e-05,2]
[422978982,1779700210000,282.14,8.512e-05,2]
[422978981,1779700210000,282.14,8.282e-05,2]
[422978980,1779700210000,282.14,8.052e-05,2]
[422979009,1779700233000,-169.74,9.17e-05,2]
[422979002,1779700233000,-7647.66,9.037e-05,2]
[422979010,1779700233000,-14727.19127163,9.186e-05,2]
[422979015,1779700233000,-188.0,9.334e-05,2]
[422979025,1779700233000,-250.0,9.744e-05,2]
[422979075,1779700233000,-3018.87,0.00010926,2]
[422979024,1779700233000,-193.0,9.744e-05,2]
[422979054,1779700233000,-185.63,0.00010089,2]
[422979030,1779700233000,-2000.0,9.834e-05,2]
[422979040,1779700233000,-2211.11,9.899e-05,2]
[422979042,1779700233000,-9999.99,9.899e-05,2]
[422979051,1779700233000,-168.42,9.92e-05,2]
[422979043,1779700233000,-215.88,9.9e-05,2]
[422979048,1779700233000,-2131.99,9.9e-05,2]
[422979019,1779700233000,-430.77,9.514e-05,2]
[422979029,1779700233000,-3254.35,9.83e-05,2]
[422979032,1779700233000,-300.0,9.887e-05,2]
[422979046,1779700233000,-9999.99,9.9e-05,2]
[422979034,1779700233000,-420.0,9.887e-05,2]
[422979008,1779700233000,-5581.53,9.169e-05,2]
[422978992,1779700233000,-250.0,8.89e-05,2]
[422979005,1779700233000,-461.54,9.11e-05,2]
[422978989,1779700233000,-215.88,8.858e-05,2]
[422978990,1779700233000,-481.79925587,8.858e-05,2]
[422979064,1779700233000,-180.99,0.00010713,2]
[422978999,1779700233000,-4274.69,8.99e-05,2]
[422979000,1779700233000,-1852.42,9.015e-05,2]
[422978991,1779700233000,-277.48625205,8.874e-05,2]
[422978994,1779700233000,-7907.68,8.97e-05,2]
[422978996,1779700233000,-300.0,8.988e-05,2]
[422979011,1779700233000,-5853.0,9.254e-05,2]
[422979001,1779700233000,-168.42,9.018e-05,2]
[422978995,1779700233000,-300.0,8.988e-05,2]
[422978998,1779700233000,-300.0,8.989e-05,2]
[422978997,1779700233000,-300.0,8.988e-05,2]
[422979012,1779700233000,-150.0,9.287e-05,2]
[422979004,1779700233000,-2852.14,9.086e-05,2]
[422979013,1779700233000,-3489.95,9.288e-05,2]
[422979007,1779700233000,-776.23,9.143e-05,2]
[422979003,1779700233000,-5871.88,9.086e-05,2]
[422978993,1779700233000,-1200.0,8.969e-05,2]
[422979023,1779700233000,-250.0,9.744e-05,2]
[422979006,1779700233000,-215.88,9.118e-05,2]
[422979053,1779700233000,-221.19152794,0.0001,2]
[422979073,1779700233000,-587.0,0.00010875,2]
[422979020,1779700233000,-215.88,9.639e-05,2]
[422979018,1779700233000,-434.0,9.463e-05,2]
[422979038,1779700233000,-169.49,9.899e-05,2]
[422979050,1779700233000,-9999.99,9.9e-05,2]
[422979037,1779700233000,-150.99,9.899e-05,2]
[422979056,1779700233000,-255.0,0.00010216,2]
[422979060,1779700233000,-1000.0,0.00010339,2]
[422979069,1779700233000,-168.42,0.00010822,2]
[422979055,1779700233000,-3018.87,0.00010164,2]
[422979026,1779700233000,-154.02660377,9.744e-05,2]
[422979028,1779700233000,-166.9,9.767e-05,2]
[422979031,1779700233000,-1680.0,9.866e-05,2]
[422979049,1779700233000,-4020.5,9.9e-05,2]
[422979059,1779700233000,-169.74,0.00010317,2]
[422979058,1779700233000,-166.9,0.00010304,2]
[422979065,1779700233000,-2000.0,0.00010749,2]
[422979072,1779700233000,-2351.0,0.00010853,2]
[422979052,1779700233000,-221.19152794,0.0001,2]
[422979070,1779700233000,-166.9,0.00010842,2]
[422979071,1779700233000,-412.79675156,0.00010849,2]
[422979014,1779700233000,-500.0,9.332e-05,2]
[422979062,1779700233000,-192.65314423,0.00010649,2]
[422979068,1779700233000,-2500.0,0.00010749,2]
[422979076,1779700233000,-2000.0,0.00010927,2]
[422979035,1779700233000,-6096.41820917,9.89e-05,2]
[422979044,1779700233000,-1102.39,9.9e-05,2]
[422979016,1779700233000,-1160.05809359,9.347e-05,2]
[422979041,1779700233000,-4125.21,9.899e-05,2]
[422979047,1779700233000,-353.28,9.9e-05,2]
[422979066,1779700233000,-33211.5749,0.00010749,2]
[422979063,1779700233000,-3018.87,0.00010672,2]
[422979022,1779700233000,-500.0,9.744e-05,2]
[422979017,1779700233000,-215.88,9.379e-05,2]
[422979074,1779700233000,-177.88848839,0.00010894,2]
[422979021,1779700233000,-1340.64,9.66e-05,2]
[422979036,1779700233000,-499.99,9.899e-05,2]
[422979057,1779700233000,-208.87966228,0.00010231,2]
[422979027,1779700233000,-195.7224227,9.744e-05,2]
[422979033,1779700233000,-300.0,9.887e-05,2]
[422979039,1779700233000,-999.99,9.899e-05,2]
[422979067,1779700233000,-5000.0,0.00010749,2]
[422979061,1779700233000,-3018.87,0.00010418,2]
[422979085,1779700234000,-827.18086267,0.00010948,2]
[422979078,1779700234000,-2757.80542024,0.00010945,2]
[422979080,1779700234000,-51046.15457551,0.00010945,2]
[422979083,1779700234000,-3727.79407186,0.00010945,2]
[422979082,1779700234000,-816.92719994,0.00010945,2]
[422979084,1779700234000,-151.0,0.00010946,2]
[422979081,1779700234000,-3552.995739,0.00010945,2]
[422979077,1779700234000,-2523.01594706,0.00010945,2]
[422979094,1779700234000,-14051.37768842,0.0001104,2]
[422979079,1779700234000,-493.46106959,0.00010945,2]
[422979092,1779700234000,-500.0,0.00011039,2]
[422979098,1779700234000,-253.46543089,0.0001104,2]
[422979089,1779700234000,-150.0,0.00010959,2]
[422979091,1779700234000,-180.22759195,0.00010999,2]
[422979093,1779700234000,-577.3891764,0.00011039,2]
[422979088,1779700234000,-500.0,0.00010958,3]
[422979099,1779700234000,-271.90586894,0.0001104,2]
[422979086,1779700234000,-1400.52537883,0.00010948,2]
[422979100,1779700234000,-683.18712388,0.0001104,2]
[422979095,1779700234000,-4870.1440156,0.0001104,2]
[422979096,1779700234000,-811.50471421,0.0001104,2]
[422979087,1779700234000,-500.0,0.00010958,2]
[422979090,1779700234000,-150.0,0.00010989,2]
[422979097,1779700234000,-439.40436146,0.0001104,2]
[422979105,1779700237000,-38.00335098,0.00011099,2]
[422979106,1779700237000,-7448.2,0.00011099,2]
[422979104,1779700237000,-151.0,0.00011046,2]
[422979107,1779700237000,-546.82246312,0.00011099,2]
[422979110,1779700237000,-3367.62180875,0.00011099,2]
[422979108,1779700237000,-1326.06788613,0.00011099,2]
[422979109,1779700237000,-1553.52,0.00011099,2]
[422979103,1779700237000,-5992.84510503,0.0001104,2]
[422979115,1779700238000,-776.3670911,0.00011136,2]
[422979112,1779700238000,-760.11851838,0.00011099,2]
[422979116,1779700238000,-500.0,0.00011148,2]
[422979114,1779700238000,-1293.28428535,0.00011099,2]
[422979111,1779700238000,-535.41792625,0.00011099,2]
[422979117,1779700238000,-500.0,0.00011148,3]
[422979113,1779700238000,-867.04626424,0.00011099,2]
[422979119,1779700238000,-290.59856355,0.00011148,5]
[422979120,1779700238000,-209.40143645,0.00011148,5]
[422979121,1779700238000,-500.0,0.00011148,6]
[422979123,1779700238000,-256.49682437,0.00011166,2]
[422979125,1779700238000,-85.6146078,0.00011181,2]
[422979118,1779700238000,-500.0,0.00011148,4]
[422979124,1779700238000,-215.38528485,0.00011174,2]
[422979122,1779700238000,-367.15438748,0.00011166,2]
[422979335,1779700239000,-2933.2553922,0.00011181,2]
[422979338,1779700239000,-29.40146231,0.0001121,2]
[422979424,1779700240000,-736.0,0.00012361,2]
[422979422,1779700240000,-438.63,0.00012329,2]
[422979420,1779700240000,-190.26906532,0.00012317,2]
[422979436,1779700240000,-500.0,0.00012368,2]
[422979434,1779700240000,-635.68695821,0.00012368,2]
[422979428,1779700240000,-500.0,0.00012368,2]
[422979430,1779700240000,-500.0,0.00012368,2]
[422979432,1779700240000,-500.0,0.00012368,2]
[422979453,1779700240000,-500.0,0.00012368,2]
[422979416,1779700240000,-152.0,0.00012237,7]
[422979439,1779700240000,-150.0,0.00012368,2]
[422979445,1779700240000,-500.0,0.00012368,2]
[422979446,1779700240000,-156.00936363,0.00012368,2]
[422979441,1779700240000,-500.0,0.00012368,2]
[422979443,1779700240000,-150.0,0.00012368,2]
[422979452,1779700240000,-500.0,0.00012368,2]
[422979455,1779700240000,-500.0,0.00012368,2]
[422979418,1779700240000,-180.2275919,0.00012299,2]
[422979426,1779700240000,-500.0,0.00012368,2]
[422979390,1779700240000,-168.42,0.00011724,2]
[422979411,1779700240000,-9703.07668907,0.00012133,2]
[422979394,1779700240000,-160.0,0.0001189,2]
[422979341,1779700240000,-652.08200092,0.0001121,2]
[422979377,1779700240000,-166.9,0.00011379,2]
[422979373,1779700240000,-8033.02581404,0.0001121,2]
[422979371,1779700240000,-9021.59322584,0.0001121,2]
[422979388,1779700240000,-8033.02581404,0.00011671,2]
[422979383,1779700240000,-160.0,0.00011657,2]
[422979375,1779700240000,-433.0,0.00011237,2]
[422979379,1779700240000,-169.74,0.00011463,2]
[422979413,1779700240000,-8033.02581404,0.00012133,2]
[422979381,1779700240000,-180.2275919,0.00011649,2]
[422979460,1779700240000,-624.0,0.00012368,2]
[422979396,1779700240000,-204.221959,0.0001189,2]
[422979405,1779700240000,-515.0,0.00011963,2]
[422979407,1779700240000,-172.14,0.00011967,2]
[422979398,1779700240000,-248.443918,0.0001189,2]
[422979401,1779700240000,-196.795706,0.0001189,2]
[422979403,1779700240000,-3292.0,0.00011938,2]
[422979392,1779700240000,-250.0,0.0001184,2]
[422979385,1779700240000,-9703.07668907,0.00011671,2]
[422979459,1779700240000,-500.0,0.00012368,2]
[422979409,1779700240000,-2000.0,0.0001202,2]
[422979454,1779700240000,-500.0,0.00012368,2]
[422979487,1779700240000,-6061.0,0.00012599,2]
[422979491,1779700240000,-168.42,0.00012626,2]
[422979507,1779700240000,-150.0,0.00013085,2]
[422979517,1779700240000,-928.0,0.00013085,2]
[422979522,1779700240000,-3547.0,0.00013085,2]
[422979526,1779700240000,-1224.0,0.00013085,2]
[422979537,1779700240000,-1300.0,0.00013356,2]
[422979542,1779700240000,-150.0,0.00013488,2]
[422979515,1779700240000,-150.0,0.00013085,2]
[422979511,1779700240000,-150.0,0.00013085,2]
[422979538,1779700240000,-150.0,0.00013488,2]
[422979485,1779700240000,-3636.0,0.00012599,2]
[422979540,1779700240000,-150.0,0.00013488,2]
[422979531,1779700240000,-4609.0,0.00013132,2]
[422979473,1779700240000,-278.484489,0.00012485,2]
[422979493,1779700240000,-300.89381,0.00012727,2]
[422979497,1779700240000,-500.0,0.00012822,2]
[422979469,1779700240000,-500.0,0.00012368,2]
[422979519,1779700240000,-626.0,0.00013085,2]
[422979513,1779700240000,-150.0,0.00013085,2]
[422979481,1779700240000,-9703.07668907,0.00012594,2]
[422979528,1779700240000,-2000.0,0.00013113,2]
[422979479,1779700240000,-172.42,0.00012588,27]
[422979465,1779700240000,-500.0,0.00012368,2]
[422979457,1779700240000,-500.0,0.00012368,2]
[422979463,1779700240000,-500.0,0.00012368,2]
[422979467,1779700240000,-500.0,0.00012368,2]
[422979475,1779700240000,-152.99,0.00012516,2]
[422979483,1779700240000,-8033.02581404,0.00012594,2]
[422979503,1779700240000,-8033.02581404,0.00013055,2]
[422979535,1779700240000,-500.0,0.00013356,2]
[422979471,1779700240000,-532.15488729,0.00012368,2]
[422979501,1779700240000,-9703.07668907,0.00013055,2]
[422979533,1779700240000,-172.14,0.00013296,2]
[422979520,1779700240000,-1355.0,0.00013085,2]
[422979499,1779700240000,-180.2275919,0.0001295,2]
[422979509,1779700240000,-150.0,0.00013085,2]
[422979489,1779700240000,-169.74,0.00012609,2]
[422979524,1779700240000,-519.0,0.00013085,2]
[422979505,1779700240000,-700.0,0.00013082,2]
[422979495,1779700240000,-500.0,0.00012767,2]
[422979477,1779700240000,-300.0,0.00012588,30]
[422979585,1779700241000,-150.0,0.00013683,2]
[422979610,1779700241000,-500.0,0.00013698,2]
[422979625,1779700241000,-1026.05,0.00013698,2]
[422979627,1779700241000,-1026.05,0.00013698,2]
[422979618,1779700241000,-500.0,0.00013698,2]
[422979604,1779700241000,-580.57,0.00013698,2]
[422979614,1779700241000,-456.79764672,0.00013698,2]
[422979591,1779700241000,-506.60979522,0.00013698,2]
[422979567,1779700241000,-1340.64,0.00013523,2]
[422979559,1779700241000,-150.22826443,0.00013488,2]
[422979608,1779700241000,-500.0,0.00013698,2]
[422979629,1779700241000,-1026.05,0.00013698,2]
[422979583,1779700241000,-150.0,0.00013675,2]
[422979557,1779700241000,-150.0,0.00013488,2]
[422979602,1779700241000,-580.57,0.00013698,2]
[422979573,1779700241000,-1252.0,0.00013596,2]
[422979565,1779700241000,-8033.02581404,0.00013516,2]
[422979593,1779700241000,-580.57,0.00013698,2]
[422979581,1779700241000,-150.0,0.00013618,2]
[422979546,1779700241000,-150.0,0.00013488,2]
[422979548,1779700241000,-150.0,0.00013488,2]
[422979550,1779700241000,-150.0,0.00013488,2]
[422979544,1779700241000,-150.0,0.00013488,2]
[422979563,1779700241000,-9703.07668907,0.00013516,2]
[422979621,1779700241000,-370.84281799,0.00013698,2]
[422979554,1779700241000,-150.0,0.00013488,2]
[422979587,1779700241000,-500.88881958,0.00013698,2]
[422979600,1779700241000,-580.57,0.00013698,2]
[422979612,1779700241000,-500.0,0.00013698,2]
[422979569,1779700241000,-168.42,0.00013528,2]
[422979579,1779700241000,-1176.0,0.00013616,5]
[422979595,1779700241000,-580.57,0.00013698,2]
[422979616,1779700241000,-500.0,0.00013698,2]
[422979598,1779700241000,-580.57,0.00013698,2]
[422979575,1779700241000,-180.2275919,0.000136,2]
[422979606,1779700241000,-500.0,0.00013698,2]
[422979670,1779700241000,-200.0,0.00013699,2]
[422979657,1779700241000,-782.19,0.00013698,2]
[422979673,1779700241000,-4262.51930198,0.00013699,2]
[422979676,1779700241000,-404.75,0.00013699,2]
[422979659,1779700241000,-782.19,0.00013698,2]
[422979665,1779700241000,-2500.0,0.00013699,2]
[422979672,1779700241000,-9787.68,0.00013699,2]
[422979663,1779700241000,-782.19,0.00013698,2]
[422979681,1779700241000,-300.13246974,0.00013699,2]
[422979667,1779700241000,-166.66,0.00013699,2]
[422979679,1779700241000,-3046.82868942,0.00013699,2]
[422979684,1779700241000,-3454.1114814,0.00013699,2]
[422979686,1779700241000,-311.98467859,0.00013699,2]
[422979589,1779700241000,-500.0,0.00013698,2]
[422979661,1779700241000,-782.19,0.00013698,2]
[422979649,1779700241000,-782.19,0.00013698,2]
[422979653,1779700241000,-782.19,0.00013698,2]
[422979637,1779700241000,-500.0,0.00013698,2]
[422979552,1779700241000,-150.0,0.00013488,2]
[422979577,1779700241000,-1115.0,0.00013616,5]
[422979623,1779700241000,-1026.05,0.00013698,2]
[422979631,1779700241000,-1026.05,0.00013698,2]
[422979633,1779700241000,-1026.05,0.00013698,2]
[422979639,1779700241000,-500.0,0.00013698,2]
[422979561,1779700241000,-150.0,0.00013488,2]
[422979641,1779700241000,-500.0,0.00013698,2]
[422979643,1779700241000,-184.05182612,0.00013698,2]
[422979645,1779700241000,-185.67712791,0.00013698,2]
[422979635,1779700241000,-1026.05,0.00013698,2]
[422979655,1779700241000,-782.19,0.00013698,2]
[422979651,1779700241000,-782.19,0.00013698,2]
[422979688,1779700241000,-524.9326699,0.00013699,2]
[422979647,1779700241000,-782.19,0.00013698,2]
[422979571,1779700241000,-150.0,0.00013553,2]
[422979919,1779700243000,-287.77587987,0.0001189,2]
[422979915,1779700243000,-160.0,0.0001189,2]
[422979917,1779700243000,-70.01307713,0.0001189,2]
[422979921,1779700243000,-555.577914,0.0001189,2]
[422979939,1779700243000,-730.12479506,0.00013699,2]
[422979923,1779700243000,-429.55955952,0.00013699,2]
[422979941,1779700243000,-319.9833657,0.00013699,2]
[422980238,1779700245000,-418.0,0.00013007,2]
[422980249,1779700245000,-17645.24,0.00013699,2]
[422980251,1779700245000,-500.0,0.00013699,2]
[422980253,1779700245000,-500.0,0.00013699,2]
[422980256,1779700245000,-500.0,0.00013699,2]
[422980236,1779700245000,-487.894032,0.00012485,2]
[422980241,1779700245000,-1144.401072,0.00013699,2]
[422980240,1779700245000,-253.704896,0.00013674,2]
[422980244,1779700245000,-1178.94063073,0.00013699,2]
[422980247,1779700245000,-13891.72128596,0.00013699,2]
[422980259,1779700245000,-500.0,0.00013699,2]
[422980257,1779700245000,-500.0,0.00013699,2]
[422980345,1779700246000,-3353.82135804,0.0001425,2]
[422980343,1779700246000,-180.2275919,0.0001425,2]
[422980341,1779700246000,-166.66,0.00014247,2]
[422980353,1779700246000,-150.0,0.000144,2]
[422980351,1779700246000,-166.66,0.00014384,2]
[422980339,1779700246000,-150.0,0.00014237,2]
[422980334,1779700246000,-150.0,0.00014237,2]
[422980337,1779700246000,-150.0,0.00014237,2]
[422980332,1779700246000,-150.0,0.00014237,2]
[422980330,1779700246000,-150.0,0.00014237,2]
[422980347,1779700246000,-150.0,0.0001427,2]
[422980328,1779700246000,-169.39,0.00014228,2]
[422980349,1779700246000,-150.0,0.00014335,2]
[422980355,1779700246000,-1238.26215735,0.000144,2]
[422980360,1779700246000,-9703.07668907,0.00014439,2]
[422980361,1779700246000,-8033.02581404,0.00014439,2]
[422980364,1779700246000,-6453.0,0.00014445,2]
[422980376,1779700246000,-150.0,0.0001453,2]
[422980392,1779700246000,-172.14,0.00014626,2]
[422980374,1779700246000,-1115.22,0.00014497,2]
[422980365,1779700246000,-1155.0,0.00014452,5]
[422980378,1779700246000,-200.0,0.00014558,2]
[422980370,1779700246000,-150.0,0.00014465,2]
[422980368,1779700246000,-700.0,0.00014452,2]
[422980371,1779700246000,-150.0,0.00014487,2]
[422980324,1779700246000,-150.0,0.00014204,2]
[422980357,1779700246000,-150.0,0.00014424,2]
[422980326,1779700246000,-169.39,0.00014228,2]
[422980271,1779700246000,-166.66,0.00013836,2]
[422980313,1779700246000,-166.66,0.0001411,2]
[422980380,1779700246000,-150.0,0.00014595,2]
[422980263,1779700246000,-150.0,0.00013737,2]
[422980261,1779700246000,-202.36518811,0.00013699,2]
[422980275,1779700246000,-150.0,0.00013862,2]
[422980273,1779700246000,-150.0,0.00013862,2]
[422980269,1779700246000,-150.0,0.00013813,2]
[422980267,1779700246000,-169.74,0.00013755,2]
[422980277,1779700246000,-150.0,0.00013862,2]
[422980265,1779700246000,-150.0,0.00013748,2]
[422980279,1779700246000,-150.0,0.00013862,2]
[422980281,1779700246000,-150.0,0.00013879,2]
[422980283,1779700246000,-150.0,0.00013944,2]
[422980315,1779700246000,-150.0,0.00014139,2]
[422980285,1779700246000,-166.66,0.00013973,2]
[422980287,1779700246000,-9703.07668907,0.00013978,2]
[422980291,1779700246000,-150.0,0.00013987,2]
[422980295,1779700246000,-250.0,0.00014,2]
[422980293,1779700246000,-3978.71808095,0.0001399,2]
[422980301,1779700246000,-150.0,0.00014074,2]
[422980297,1779700246000,-150.0,0.00014009,2]
[422980299,1779700246000,-150.0,0.0001405,2]
[422980305,1779700246000,-189.4,0.00014087,2]
[422980307,1779700246000,-1178.3105174,0.00014087,2]
[422980303,1779700246000,-3493.095,0.00014087,2]
[422980309,1779700246000,-11500.0426928,0.00014087,2]
[422980311,1779700246000,-1014.0643852,0.00014087,2]
[422980289,1779700246000,-8033.02581404,0.00013978,2]
[422980394,1779700246000,-150.0,0.00014661,2]
[422980490,1779700246000,-191.10191603,0.00014925,2]
[422980398,1779700246000,-155.0,0.00014702,2]
[422980448,1779700246000,-150.0,0.00014856,2]
[422980457,1779700246000,-5000.0,0.00014898,2]
[422980455,1779700246000,-10000.0,0.00014898,2]
[422980461,1779700246000,-220.10612883,0.00014899,2]
[422980459,1779700246000,-580.57,0.00014899,2]
[422980469,1779700246000,-220.10612881,0.000149,2]
[422980475,1779700246000,-48067.87525561,0.000149,2]
[422980471,1779700246000,-180.2275919,0.000149,2]
[422980477,1779700246000,-158.38740846,0.000149,2]
[422980463,1779700246000,-220.10612881,0.000149,2]
[422980479,1779700246000,-158.38740846,0.000149,2]
[422980473,1779700246000,-8033.02581404,0.000149,2]
[422980453,1779700246000,-782.19,0.00014898,2]
[422980396,1779700246000,-11982.60287976,0.000147,2]
[422980482,1779700246000,-158.38740846,0.000149,2]
[422980484,1779700246000,-158.38740846,0.000149,2]
[422980486,1779700246000,-150.0,0.00014921,2]
[422980488,1779700246000,-150.0,0.00014924,2]
[422980504,1779700246000,-150.0,0.00014986,2]
[422980497,1779700246000,-150.0,0.00014986,2]
[422980495,1779700246000,-2129.0,0.00014961,2]
[422980502,1779700246000,-150.0,0.00014986,2]
[422980500,1779700246000,-150.0,0.00014986,2]
[422980493,1779700246000,-350.0,0.00014927,2]
[422980507,1779700246000,-150.0,0.00014986,2]
[422980509,1779700246000,-288.5063025,0.00014986,2]
[422980467,1779700246000,-9703.07668907,0.000149,2]
[422980450,1779700246000,-1026.05,0.00014898,2]
[422980465,1779700246000,-2248.39118971,0.000149,2]
[422980444,1779700246000,-1430.55556,0.0001485,2]
[422980446,1779700246000,-1430.55556,0.0001485,2]
[422980386,1779700246000,-150.0,0.00014612,2]
[422980388,1779700246000,-150.0,0.00014612,2]
[422980382,1779700246000,-473.83921814,0.00014596,2]
[422980390,1779700246000,-150.0,0.00014612,2]
[422980384,1779700246000,-150.0,0.00014612,2]
[422980400,1779700246000,-204.0,0.00014702,2]
[422980402,1779700246000,-470.0,0.00014702,2]
[422980407,1779700246000,-168.0,0.00014702,2]
[422980409,1779700246000,-470.0,0.00014702,2]
[422980413,1779700246000,-653.0,0.00014702,2]
[422980411,1779700246000,-157.0,0.00014702,2]
[422980415,1779700246000,-209.0,0.00014702,2]